Workbook

Sheet 解説
B2: 対向流システムのシミュレーション
C3: 1) シートの説明
D4: CC_Loop | E4: 対向流によって濃度コントロール後に分泌するしくみ
D5: CC_Flow | E5: 対向流による物質交換機構
D6: PC_Flow | E6: 平行流による物質交換機構
C8: 2) 使い方
D9: To intialize: | E9: AS列以降に記された数値（初期値）に置換する作業の実施
D10: Automatic run: | E10: 流れのシミュレーション実施（２０回）
D11: Single run: | E11: 流れのシミュレーション実施（１回のみ）
C13: 3) プログラム作動原理
D14: A列に系への入力値・拡散（⇋）の速度を入力して条件設定
D15: C列にAE列からの数値を元に演算（隣接セルからの計算）して記入
D16: C列のデータをAE列データにコピー

Sheet CC_Loop
A1: Diffusion rate | H1: =AI2+(AJ3-AI2)*$A$10 -> 1.430688336 | AH1: 1.417661133 | AS1: Initial
A2: 0.15 | AW2: 0
A3: Input | E3: =AE4 -> 9.003109985 | F3: =AE3 -> 9.329635118 | G3: 8.848459562 | H3: 9.042469721 | I3: =AH3 -> 8.724379324 | J3: =AI3-(AJ3-AI2)*$A$10 -> 7.315292699 | K3: =AJ3 -> 7.153441682 | L3: =AK3 -> 7.088305667 | M3: =AL3 -> 6.994375044 | N3: 6.891113734 | O3: 6.821607878 | AE3: 9.329635118 | AF3: 8.848459562 | AG3: 9.042469721 | AH3: 8.724379324 | AI3: 8.745981036 | AJ3: 7.153441682 | AK3: 7.088305667 | AL3: 6.994375044 | AM3: 6.891113734 | AN3: 6.821607878 | AO3: 6.689740012 | AS3: 0 | AT3: 0 | AU3: 0 | AV3: 0 | AW3: 0 | AX3: 0 | AY3: 0 | AZ3: 0 | BA3: 0 | BB3: 0 | BC3: 0
A4: 37 | E4: =AE5 -> 9.551661608 | O4: =AO3 -> 6.689740012 | AE4: 9.003109985 | AO4: 6.658730697 | AS4: 0 | BC4: 0
E5: 9.219653429 | O5: =AO4 -> 6.658730697 | AE5: 9.551661608 | AO5: 6.480630808 | AS5: 0 | BC5: 0
E6: =AF6 -> 9.70577922 | F6: =AG6 -> 9.473835874 | G6: 9.830084889 | H6: 9.724316887 | I6: =AI7 -> 9.958318185 | K6: =AL6 -> 6.152252395 | L6: =AM6 -> 6.291616304 | M6: 6.29529531 | N6: =AO6 -> 6.493824078 | O6: 6.480630808 | AE6: 9.219653429 | AF6: 9.70577922 | AG6: 9.473835874 | AH6: 9.830084889 | AI6: 9.724316887 | AK6: 6.081761652 | AL6: 6.152252395 | AM6: 6.291616304 | AN6: 6.29529531 | AO6: 6.493824078 | AS6: 0 | AT6: 0 | AU6: 0 | AV6: 0 | AW6: 0 | AY6: 0 | AZ6: 0 | BA6: 0 | BB6: 0 | BC6: 0
A7: Output | I7: =AI8-(AI8+AI7-AK7-AK6)*$A$2 -> 9.948377646 | J7: ⇋ | K7: =AK6+(AI7+AI8-AK7-AK6)*$A$2 -> 7.260108397 | AI7: 9.958318185 | AJ7: ⇋ | AK7: 7.147635955 | AW7: 0 | AY7: 0
A8: =O27 -> 30.86088312 | I8: =AI9-(AI9+AI8-AK8-AK7)*$A$2 -> 11.27226491 | J8: ⇋ | K8: =AK7+(AI8+AI9-AK8-AK7)*$A$2 -> 8.369881087 | AI8: 11.12672439 | AJ8: ⇋ | AK8: 8.325297607 | AW8: 0 | AY8: 0
A9: Secretion | I9: 12.55320275 | J9: ⇋ | K9: 9.60707299 | P9: =MAX(E3:O27) -> 37 | Q9: Max | AI9: 12.49451005 | AJ9: ⇋ | AK9: 9.459021354 | AP9: 37 | AW9: 0 | AY9: 0
A10: 0.2 | I10: 13.93157944 | J10: ⇋ | K10: 10.78906849 | P10: =(P9*5+P14)/6 -> 31.85870873 | AI10: 13.83497813 | AJ10: ⇋ | AK10: 10.77060247 | AP10: 34.25846147 | AW10: 0 | AY10: 0
A11: Storage | I11: 15.3422434 | J11: ⇋ | K11: 12.15477488 | P11: =(P9*4+P14*2)/6 -> 26.71741746 | AI11: 15.26162657 | AJ11: ⇋ | AK11: 11.98962386 | AP11: 31.51692294 | AW11: 0 | AY11: 0
A12: =H1 -> 1.430688336 | I12: 16.80163333 | J12: ⇋ | K12: 13.42363281 | P12: =(P9+P14)/2 -> 21.5761262 | AI12: 16.7264158 | AJ12: ⇋ | AK12: 13.41237452 | AP12: 28.77538442 | AW12: 0 | AY12: 0
I13: 18.31464691 | J13: ⇋ | K13: 14.89365614 | P13: =(P9+P14*5)/6 -> 11.29354366 | AI13: 18.23564228 | AJ13: ⇋ | AK13: 14.74398551 | AP13: 23.29230736 | AW13: 0 | AY13: 0
I14: 19.86013115 | J14: ⇋ | K14: 16.27338959 | P14: =MIN(E3:O27) -> 6.152252395 | Q14: Min | AI14: 19.79592853 | AJ14: ⇋ | AK14: 16.24545101 | AP14: 20.55076883 | AW14: 0 | AY14: 0
I15: 21.45701113 | J15: ⇋ | K15: 17.8158277 | AI15: 21.38953524 | AJ15: ⇋ | AK15: 17.70229412 | AW15: 0 | AY15: 0
I16: 23.08213005 | J16: ⇋ | K16: 19.3144896 | AI16: 23.02738781 | AJ16: ⇋ | AK16: 19.27144937
I17: 24.74694371 | J17: ⇋ | K17: 20.92031577 | AI17: 24.69432553 | AJ17: ⇋ | AK17: 20.82624359
I18: 26.44235404 | J18: ⇋ | K18: 22.50626053 | AI18: 26.39581011 | AJ18: ⇋ | AK18: 22.49182454
I19: 28.15104965 | J19: ⇋ | K19: 24.2063182 | AI19: 28.12237099 | AJ19: ⇋ | AK19: 24.066132
I20: 29.91430666 | J20: ⇋ | K20: 25.79622897 | AI20: 29.86554331 | AJ20: ⇋ | AK20: 25.90983515
I21: 31.64102399 | J21: ⇋ | K21: 27.67642037 | AI21: 31.64440363 | AJ21: ⇋ | AK21: 27.36494291 | AW21: 0 | AY21: 0
I22: 33.44973749 | J22: ⇋ | K22: 29.12742542 | AI22: 33.40760921 | AJ22: ⇋ | AK22: 29.5050029 | AW22: 0 | AY22: 0
I23: 35.20287376 | J23: ⇋ | K23: 31.30212914 | AI23: 35.21222 | AJ23: ⇋ | AK23: 30.72637549 | AW23: 0 | AY23: 0
E24: =AE25 -> 37 | F24: =AE24 -> 37 | G24: 37 | H24: 37 | I24: =AH24 -> 37 | K24: =AK23 -> 30.72637549 | L24: =AK24 -> 31.34238446 | M24: =AL24 -> 30.63571344 | N24: 31.25427577 | O24: 30.69337593 | AE24: 37 | AF24: 37 | AG24: 37 | AH24: 37 | AI24: 37 | AK24: 31.34238446 | AL24: 30.63571344 | AM24: 31.25427577 | AN24: 30.69337593 | AO24: 31.04042 | AS24: 0 | AT24: 0 | AU24: 0 | AV24: 0 | AW24: 0 | AY24: 0 | AZ24: 0 | BA24: 0 | BB24: 0 | BC24: 0
E25: =AE26 -> 37 | O25: =AO24 -> 31.04042 | AE25: 37 | AO25: 30.80294151 | AS25: 0 | BC25: 0
E26: 37 | O26: =AO25 -> 30.80294151 | AE26: 37 | AO26: 30.86088312 | AS26: 0 | BC26: 0
E27: =A4 -> 37 | O27: 30.86088312 | AE27: 37 | AO27: 30.81359587 | AS27: 0 | BC27: 0
F29: To intialize: | K29: Ctrl+Shft+I | AF29: To intialize: | AK29: Ctrl+Shft+I
F30: Automatic run: | K30: Ctrl+Shft+A | AF30: Automatic run: | AK30: Ctrl+Shft+A
F31: Single run: | K31: Ctrl+Shft+L

Sheet CC_Flow
A1: Diffusion rate | AS1: Initial
A2: 0.15
A3: Input A | E3: =AE4 -> 9.843805828 | O3: =A6 -> 5 | AE3: 9.82701252 | AO3: 5 | AS3: 0 | AT3: 0 | AU3: 0 | AV3: 0 | AW3: 0 | AX3: 0 | AY3: 0 | AZ3: 0 | BA3: 0 | BB3: 0 | BC3: 0
A4: 37 | E4: =AE5 -> 9.860418815 | O4: =AO3 -> 5 | AE4: 9.843805828 | AO4: 5 | AS4: 0 | BC4: 0
A5: Input B | E5: 9.875938442 | O5: =AO4 -> 5 | AE5: 9.860418815 | AO5: 5 | AS5: 0 | BC5: 0
A6: 5 | E6: =AF6 -> 9.891155591 | F6: =AG6 -> 9.905501861 | G6: 9.919447322 | H6: 9.932695339 | I6: =AI7 -> 9.945489886 | K6: =AL6 -> 5 | L6: =AM6 -> 5 | M6: 5 | N6: =AO6 -> 5 | O6: 5 | AE6: 9.875938442 | AF6: 9.891155591 | AG6: 9.905501861 | AH6: 9.919447322 | AI6: 9.932695339 | AK6: 5 | AL6: 5 | AM6: 5 | AN6: 5 | AO6: 5 | AS6: 0 | AT6: 0 | AU6: 0 | AV6: 0 | AW6: 0 | AY6: 0 | AZ6: 0 | BA6: 0 | BB6: 0 | BC6: 0
A7: Output A | I7: =AI8-(AI8+AI7-AK7-AK6)*$A$2 -> 9.957711644 | J7: ⇋ | K7: =AK6+(AI7+AI8-AK7-AK6)*$A$2 -> 6.486039716 | AI7: 9.945489886 | AJ7: ⇋ | AK7: 6.482309805 | AW7: 0 | AY7: 0
A8: =E3 -> 9.843805828 | I8: =AI9-(AI9+AI8-AK8-AK7)*$A$2 -> 11.45906672 | J8: ⇋ | K8: =AK7+(AI8+AI9-AK8-AK7)*$A$2 -> 7.974143072 | AI8: 11.44375136 | AJ8: ⇋ | AK8: 7.966786429 | AW8: 0 | AY8: 0
A9: Output B | I9: 12.96895211 | J9: ⇋ | K9: 9.466354703 | P9: =MAX(E3:O27) -> 37 | Q9: Max | AI9: 12.95089999 | AJ9: ⇋ | AK9: 9.455512111 | AP9: 37 | AW9: 0 | AY9: 0
A10: =O27 -> 31.35119695 | I10: 14.48878998 | J10: ⇋ | K10: 10.96455768 | P10: =(P9*5+P14)/6 -> 31.66666667 | AI10: 14.46852038 | AJ10: ⇋ | AK10: 10.95054004 | AP10: 31.66666667 | AW10: 0 | AY10: 0
I11: 16.02004681 | J11: ⇋ | K11: 12.47060195 | P11: =(P9*4+P14*2)/6 -> 26.33333333 | AI11: 15.99783555 | AJ11: ⇋ | AK11: 12.45365818 | AP11: 26.33333333 | AW11: 0 | AY11: 0
I12: 17.5634016 | J12: ⇋ | K12: 13.98599094 | P12: =(P9+P14)/2 -> 21 | AI12: 17.54010872 | AJ12: ⇋ | AK12: 13.96663317 | AP12: 21 | AW12: 0 | AY12: 0
I13: 19.12004327 | J13: ⇋ | K13: 15.51222843 | P13: =(P9+P14*5)/6 -> 10.33333333 | AI13: 19.09573436 | AJ13: ⇋ | AK13: 15.49077129 | AP13: 10.33333333 | AW13: 0 | AY13: 0
I14: 20.68976071 | J14: ⇋ | K14: 17.05028221 | P14: =MIN(E3:O27) -> 5 | Q14: Min | AI14: 20.66563853 | AJ14: ⇋ | AK14: 17.02739942 | AP14: 5 | AW14: 0 | AY14: 0
I15: 22.27338416 | J15: ⇋ | K15: 18.60117054 | AI15: 22.24927163 | AJ15: ⇋ | AK15: 18.57722001
I16: 23.86987356 | J16: ⇋ | K16: 20.16524877 | AI16: 23.84715528 | AJ16: ⇋ | AK16: 20.14097915
I17: 25.47951464 | J17: ⇋ | K17: 21.7429257 | AI17: 25.45790232 | AJ17: ⇋ | AK17: 21.71874071
I18: 27.10068275 | J18: ⇋ | K18: 23.33394856 | AI18: 27.08146118 | AJ18: ⇋ | AK18: 23.31055875
I19: 28.7329461 | J19: ⇋ | K19: 24.93803733 | AI19: 28.7158906 | AJ19: ⇋ | AK19: 24.91589931
I20: 30.374357 | J20: ⇋ | K20: 26.55439624 | AI20: 30.36042468 | AJ20: ⇋ | AK20: 26.53406647 | AW20: 0 | AY20: 0
I21: 32.02375676 | J21: ⇋ | K21: 28.18203631 | AI21: 32.01285392 | AJ21: ⇋ | AK21: 28.16404844 | AW21: 0 | AY21: 0
I22: 33.67904552 | J22: ⇋ | K22: 29.81976094 | AI22: 33.6717266 | AJ22: ⇋ | AK22: 29.80435283 | AW22: 0 | AY22: 0
I23: 35.33850598 | J23: ⇋ | K23: =AK22+(AI23+AI24-AK23-AK22)*$A$2 -> 31.46584685 | AI23: 35.33475802 | AJ23: ⇋ | AK23: 31.4537784 | AW23: 0 | AY23: 0
E24: =AE25 -> 37 | F24: =AE24 -> 37 | G24: 37 | H24: 37 | I24: =AH24 -> 37 | K24: =AK23 -> 31.4537784 | L24: =AK24 -> 31.44075374 | M24: =AL24 -> 31.4278462 | N24: 31.41341035 | O24: 31.39974684 | AE24: 37 | AF24: 37 | AG24: 37 | AH24: 37 | AI24: 37 | AK24: 31.44075374 | AL24: 31.4278462 | AM24: 31.41341035 | AN24: 31.39974684 | AO24: 31.3836126 | AS24: 0 | AT24: 0 | AU24: 0 | AV24: 0 | AW24: 0 | AY24: 0 | AZ24: 0 | BA24: 0 | BB24: 0 | BC24: 0
E25: =AE26 -> 37 | O25: =AO24 -> 31.3836126 | AE25: 37 | AO25: 31.36927714 | AS25: 0 | BC25: 0
E26: 37 | O26: =AO25 -> 31.36927714 | AE26: 37 | AO26: 31.35119695 | AS26: 0 | BC26: 0
E27: =$A$4 -> 37 | O27: 31.35119695 | AE27: 37 | AO27: 31.33614117 | AS27: 0.5 | BC27: 0
F29: To intialize: | K29: Ctrl+Shft+F | AF29: To intialize: | AK29: Ctrl+Shft+F
F30: Automatic run: | K30: Ctrl+Shft+G | AF30: Automatic run: | AK30: Ctrl+Shft+G
F31: Single run: | K31: Ctrl+Shft+H

Sheet PC_Flow
A1: Diffusion rate | AS1: Initial
A2: 0.15
A3: Input A | E3: =A4 -> 37 | O3: =A6 -> 5 | AE3: 37 | AO3: 5 | AS3: 0 | AT3: 0 | AU3: 0 | AV3: 0 | AW3: 0 | AX3: 0 | AY3: 0 | AZ3: 0 | BA3: 0 | BB3: 0 | BC3: 0
A4: 37 | E4: =AE3 -> 37 | O4: =AO3 -> 5 | AE4: 37 | AO4: 5 | AS4: 0 | BC4: 0
A5: Input B | E5: =AE4 -> 37 | O5: =AO4 -> 5 | AE5: 37 | AO5: 5 | AS5: 0 | BC5: 0
A6: 5 | E6: 37 | F6: =AE6 -> 37 | G6: =AF6 -> 37 | H6: 37 | I6: =AH6 -> 37 | K6: =AL6 -> 5 | L6: =AM6 -> 5 | M6: 5 | N6: =AO6 -> 5 | O6: 5 | AE6: 37 | AF6: 37 | AG6: 37 | AH6: 37 | AI6: 37 | AK6: 5 | AL6: 5 | AM6: 5 | AN6: 5 | AO6: 5 | AS6: 0 | AT6: 0 | AU6: 0 | AV6: 0 | AW6: 0 | AY6: 0 | AZ6: 0 | BA6: 0 | BB6: 0 | BC6: 0
A7: Output A | I7: =AI6-(AI8+AI7-AK7-AK6)*$A$2 -> 30.77278386 | J7: ⇋ | K7: =AK6+(AI7+AI8-AK7-AK6)*$A$2 -> 11.22721614 | AI7: 30.77278386 | AJ7: ⇋ | AK7: 11.22721614 | AW7: 0 | AY7: 0
A8: =E27 -> 21.00355874 | I8: =AI7-(AI9+AI8-AK8-AK7)*$A$2 -> 26.96920653 | J8: ⇋ | K8: =AK7+(AI8+AI9-AK8-AK7)*$A$2 -> 15.03079347 | AI8: 26.96920653 | AJ8: ⇋ | AK8: 15.03079347 | AW8: 0 | AY8: 0
A9: Output B | I9: 24.64598533 | J9: ⇋ | K9: 17.35401467 | P9: =MAX(E3:O27) -> 37 | Q9: Max | AI9: 24.64598533 | AJ9: ⇋ | AK9: 17.35401467 | AP9: 37 | AW9: 0 | AY9: 0
A10: =O27 -> 20.99644126 | I10: 23.22696416 | J10: ⇋ | K10: 18.77303584 | P10: =(P9*5+P14)/6 -> 31.66666667 | AI10: 23.22696416 | AJ10: ⇋ | AK10: 18.77303584 | AP10: 31.66666667 | AW10: 0 | AY10: 0
I11: 22.36022746 | J11: ⇋ | K11: 19.63977254 | P11: =(P9*4+P14*2)/6 -> 26.33333333 | AI11: 22.36022746 | AJ11: ⇋ | AK11: 19.63977254 | AP11: 26.33333333 | AW11: 0 | AY11: 0
I12: 21.83082556 | J12: ⇋ | K12: 20.16917444 | P12: =(P9+P14)/2 -> 21 | AI12: 21.83082556 | AJ12: ⇋ | AK12: 20.16917444 | AP12: 21 | AW12: 0 | AY12: 0
I13: 21.50746742 | J13: ⇋ | K13: 20.49253258 | P13: =(P9+P14*5)/6 -> 10.33333333 | AI13: 21.50746742 | AJ13: ⇋ | AK13: 20.49253258 | AP13: 10.33333333 | AW13: 0 | AY13: 0
I14: 21.30996059 | J14: ⇋ | K14: 20.69003941 | P14: =MIN(E3:O27) -> 5 | Q14: Min | AI14: 21.30996058 | AJ14: ⇋ | AK14: 20.69003942 | AP14: 5 | AW14: 0 | AY14: 0
I15: 21.18932361 | J15: ⇋ | K15: 20.81067639 | AI15: 21.1893236 | AJ15: ⇋ | AK15: 20.8106764 | AW15: 0 | AY15: 0
I16: 21.11563865 | J16: ⇋ | K16: 20.88436135 | AI16: 21.11563871 | AJ16: ⇋ | AK16: 20.88436129 | AW16: 0 | AY16: 0
I17: 21.07063203 | J17: ⇋ | K17: 20.92936797 | AI17: 21.07063203 | AJ17: ⇋ | AK17: 20.92936797 | AW17: 0 | AY17: 0
I18: 21.04314206 | J18: ⇋ | K18: 20.95685794 | AI18: 21.04314177 | AJ18: ⇋ | AK18: 20.95685823 | AW18: 0 | AY18: 0
I19: 21.02635081 | J19: ⇋ | K19: 20.97364919 | AI19: 21.02635087 | AJ19: ⇋ | AK19: 20.97364913 | AW19: 0 | AY19: 0
I20: 21.0160949 | J20: ⇋ | K20: 20.9839051 | AI20: 21.0160962 | AJ20: ⇋ | AK20: 20.9839038 | AW20: 0 | AY20: 0
I21: 21.00983033 | J21: ⇋ | K21: 20.99016967 | AI21: 21.00982983 | AJ21: ⇋ | AK21: 20.99017017 | AW21: 0 | AY21: 0
I22: 21.0060211 | J22: ⇋ | K22: 20.9939789 | AI22: 21.00601663 | AJ22: ⇋ | AK22: 20.99398337 | AW22: 0 | AY22: 0
I23: 21.00352535 | J23: ⇋ | K23: 20.99647465 | AI23: 21.00352846 | AJ23: ⇋ | AK23: 20.99647154 | AW23: 0 | AY23: 0
E24: =AF24 -> 21.00354327 | F24: 21.0035243 | G24: 21.00352298 | H24: =AI24 -> 21.00353496 | I24: =AI23 -> 21.00352846 | K24: =AK23 -> 20.99647154 | L24: =AK24 -> 20.99646504 | M24: =AL24 -> 20.99647702 | N24: 20.9964757 | O24: 20.99645673 | AE24: 21.00352147 | AF24: 21.00354327 | AG24: 21.0035243 | AH24: 21.00352298 | AI24: 21.00353496 | AK24: 20.99646504 | AL24: 20.99647702 | AM24: 20.9964757 | AN24: 20.99645673 | AO24: 20.99647853 | AS24: 0 | AT24: 0 | AU24: 0 | AV24: 0 | AW24: 0 | AY24: 0 | AZ24: 0 | BA24: 0 | BB24: 0 | BC24: 0
E25: =AE24 -> 21.00352147 | O25: =AO24 -> 20.99647853 | AE25: 21.00351176 | AO25: 20.99648824 | AS25: 0 | BC25: 0
E26: =AE25 -> 21.00351176 | O26: =AO25 -> 20.99648824 | AE26: 21.00355874 | AO26: 20.99644126 | AS26: 0 | BC26: 0
E27: 21.00355874 | O27: 20.99644126 | AE27: 21.00352673 | AO27: 20.99647327 | AS27: 0 | BC27: 0
F29: To intialize: | K29: Ctrl+Shft+P | AF29: To intialize: | AK29: Ctrl+Shft+P
F30: Automatic run: | K30: Ctrl+Shft+O | AF30: Automatic run: | AK30: Ctrl+Shft+O
F31: Single run: | K31: Ctrl+Shft+U | AF31: Single run: | AK31: Ctrl+Shft+U
